fUST/lending_fUST_20250921
["ID","MTS","AMOUNT","RATE_DAILY","PERIOD"]
[386665807,1758455457282,-1000.0,0.00020321,2]
[386665808,1758455457292,-500.0,0.00020321,2]
[386665809,1758455457301,-1012.91935127,0.00020321,2]
[386665810,1758455457311,-1000.0,0.00020321,2]
[386665811,1758455457320,-1071.88797371,0.00020321,2]
[386665812,1758455457329,-1000.0,0.00020321,2]
[386665813,1758455457339,-1000.0,0.00020321,2]
[386665814,1758455457348,-1000.0,0.00020321,2]
[386665815,1758455457357,-1000.0,0.00020321,2]
[386665816,1758455457368,-500.0,0.00020321,2]
[386665817,1758455457380,-500.0,0.00020321,2]
[386665818,1758455457390,-768.3084446,0.00020321,2]
[386665819,1758455457401,-500.0,0.00020321,2]
[386665820,1758455457411,-1000.0,0.00020321,2]
[386665821,1758455457420,-500.0,0.00020321,2]
[386665822,1758455457430,-1000.0,0.00020321,2]
[386665823,1758455457440,-1000.0,0.00020321,2]
[386665824,1758455457450,-1000.0,0.00020321,2]
[386665825,1758455457460,-702.92122646,0.00020321,2]
[386665826,1758455457469,-500.0,0.00020321,2]
[386665827,1758455457479,-152.497499,0.00020321,2]
[386665828,1758455457489,-153.357488,0.00020321,2]
[386665829,1758455457499,-151.0,0.00020321,2]
[386665830,1758455457508,-151.0,0.00020321,2]
[386665831,1758455457517,-332.447463,0.00020321,2]
[386665832,1758455457527,-332.447463,0.00020321,2]
[386665833,1758455457536,-332.447463,0.00020321,2]
[386665834,1758455457547,-332.447463,0.00020321,2]
[386665835,1758455457556,-160.0,0.00020325,2]
[386665836,1758455457566,-160.0,0.00020325,2]
[386665837,1758455457575,-160.0,0.00020325,2]
[386665838,1758455457585,-848.42763433,0.00020325,2]
[386665839,1758455457594,-160.0,0.00020325,2]
[386665840,1758455457603,-160.0,0.00020325,2]
[386665841,1758455457613,-160.0,0.00020325,2]
[386665842,1758455457622,-233.52200025,0.00020325,2]
[386665843,1758455457631,-160.0,0.00020325,2]
[386665844,1758455457640,-160.0,0.00020325,2]
[386665845,1758455457649,-160.0,0.00020325,2]
[386665846,1758455457659,-160.0,0.00020325,2]
[386665847,1758455457669,-404.62448614,0.00020325,2]
[386665848,1758455457679,-5000.0,0.00020375,2]
[386665849,1758455457689,-151.0,0.000204,4]
[386665850,1758455457698,-5311.64,0.00020429,3]
[386665851,1758455457708,-2655.82,0.00020429,3]
[386665852,1758455457719,-1327.9,0.00020429,3]
[386665853,1758455457729,-663.96,0.00020429,3]
[386665854,1758455457739,-331.98,0.00020429,3]
[386665855,1758455457748,-417.15472785,0.00020429,3]
[386665856,1758455457758,-160.0,0.00020429,3]
[386665857,1758455457768,-7790.45,0.00020432,2]
[386665858,1758455457778,-500.0,0.00020433,2]
[386665859,1758455457787,-260.0,0.00020444,2]
[386665860,1758455457798,-500.0,0.00020458,2]
[386665861,1758455457807,-500.0,0.00020458,2]
[386665862,1758455457817,-473.8330752,0.00020458,2]
[386665863,1758455457827,-500.0,0.00020458,2]
[386665864,1758455457836,-500.0,0.00020458,2]
[386665865,1758455457846,-500.0,0.00020458,2]
[386665866,1758455457855,-165.64827802,0.00020458,2]
[386665867,1758455457864,-500.0,0.00020458,2]
[386665868,1758455457875,-500.0,0.00020458,2]
[386665869,1758455457884,-503.37110723,0.00020458,2]
[386665870,1758455457893,-500.0,0.00020458,2]
[386665871,1758455457903,-500.0,0.00020458,2]
[386665872,1758455457912,-500.0,0.00020458,2]
[386665873,1758455457922,-500.0,0.00020458,2]
[386665874,1758455457931,-43343.51979652,0.000205,2]
[386665875,1758455457941,-2638.33532961,0.000205,2]
[386665876,1758455457951,-161.780663,0.000205,2]
[386665877,1758455457960,-151.0,0.000205,2]
[386665878,1758455457970,-154.249772,0.000205,2]
[386665879,1758455457979,-151.0,0.000205,2]
[386665880,1758455457989,-174.338455,0.000205,2]
[386665881,1758455457998,-174.338455,0.000205,2]
[386665882,1758455458008,-174.338455,0.000205,2]
[386665883,1758455458018,-151.0,0.000205,2]
[386665884,1758455458028,-174.338455,0.000205,2]
[386665885,1758455458038,-480.0,0.00020547,2]
[386665886,1758455458048,-480.0,0.00020547,2]
[386665887,1758455458058,-388.93709765,0.00020547,2]
[386665888,1758455458067,-480.0,0.00020547,2]
[386665889,1758455458076,-480.0,0.00020547,2]
[386665890,1758455458086,-480.0,0.00020547,2]
[386665891,1758455458096,-480.0,0.00020547,2]
[386665892,1758455458105,-480.0,0.00020547,2]
[386665893,1758455458114,-480.0,0.00020547,2]
[386665894,1758455458124,-480.0,0.00020547,2]
[386665895,1758455458134,-480.0,0.00020547,2]
[386665896,1758455458143,-480.0,0.00020547,2]
[386665897,1758455458152,-480.0,0.00020547,2]
[386665898,1758455458163,-480.0,0.00020547,2]
[386665899,1758455458173,-480.0,0.00020547,2]
[386665900,1758455458182,-555.81649541,0.00020547,2]
[386665901,1758455458192,-151.0,0.00020547,2]
[386665902,1758455458201,-151.0,0.00020547,2]
[386665903,1758455458211,-154.336327,0.00020547,2]
[386665904,1758455458220,-480.0,0.00020547,2]
[386665905,1758455458230,-485.8674501,0.00020547,2]
[386665906,1758455458239,-499.21,0.00020547,2]
[386665907,1758455458248,-387.30731759,0.00020547,2]
[386665908,1758455458257,-488.94641156,0.00020547,2]
[386665909,1758455458267,-151.0,0.00020547,2]
[386665910,1758455458276,-480.0,0.00020547,2]
[386665911,1758455458285,-480.0,0.00020547,2]
[386665912,1758455458295,-151.0,0.00020547,2]
[386665913,1758455458305,-480.0,0.00020547,2]
[386665914,1758455458315,-151.0,0.00020547,2]
[386665915,1758455458325,-480.0,0.00020547,2]
[386665916,1758455458333,-480.0,0.00020547,2]
[386665917,1758455458342,-480.0,0.00020547,2]
[386665918,1758455458352,-480.0,0.00020547,2]
[386665919,1758455458361,-153.08488,0.00020547,2]
[386665920,1758455458371,-480.0,0.00020547,2]
[386665921,1758455458383,-480.0,0.00020547,2]
[386665922,1758455458393,-480.0,0.00020547,2]
[386665923,1758455458402,-418.81688739,0.00020547,2]
[386665924,1758455458411,-480.0,0.00020547,2]
[386665925,1758455458421,-480.0,0.00020547,2]
[386665926,1758455458431,-497.46602435,0.00020547,2]
[386665927,1758455458440,-491.90398646,0.00020547,2]
[386665928,1758455458449,-3266.23,0.00020547,2]
[386665929,1758455458460,-480.0,0.00020547,2]
[386665930,1758455458470,-480.0,0.00020547,2]
[386665931,1758455458479,-480.0,0.00020547,2]
[386665932,1758455458489,-527.95415741,0.00020547,2]
[386665933,1758455458498,-999.01,0.00020547,2]
[386665934,1758455458508,-480.0,0.00020547,2]
[386665935,1758455458518,-480.0,0.00020547,2]
[386665936,1758455458528,-480.0,0.00020547,2]
[386665937,1758455458537,-480.0,0.00020547,2]
[386665938,1758455458547,-480.0,0.00020547,2]
[386665939,1758455458556,-480.0,0.00020547,2]
[386665940,1758455458566,-480.0,0.00020547,2]
[386665941,1758455458575,-480.0,0.00020547,2]
[386665942,1758455458585,-480.0,0.00020547,2]
[386665943,1758455458594,-539.12,0.00020547,2]
[386665944,1758455458604,-480.0,0.00020547,2]
[386665945,1758455458613,-513.56,0.00020547,2]
[386665946,1758455458622,-948.56,0.00020547,2]
[386665947,1758455458632,-1038.88,0.00020547,2]
[386665948,1758455458641,-151.0,0.00020547,2]
[386665949,1758455458650,-480.0,0.00020547,2]
[386665950,1758455458660,-487.12475197,0.00020547,2]
[386665951,1758455458669,-151.0,0.00020547,2]
[386665952,1758455458679,-480.0,0.00020547,2]
[386665953,1758455458688,-622.1,0.00020547,2]
[386665954,1758455458698,-151.0,0.00020547,2]
[386665955,1758455458707,-480.0,0.00020547,2]
[386665956,1758455458716,-317.0786928,0.00020547,2]
[386665957,1758455458726,-178.34176478,0.00020547,2]
[386665958,1758455458735,-480.0,0.00020547,2]
[386665959,1758455458744,-480.0,0.00020547,2]
[386665960,1758455458753,-480.0,0.00020547,2]
[386665961,1758455458763,-480.0,0.00020547,2]
[386665962,1758455458772,-480.0,0.00020547,2]
[386665963,1758455458782,-480.0,0.00020547,2]
[386665964,1758455458791,-480.0,0.00020547,2]
[386665965,1758455458802,-480.0,0.00020547,2]
[386665966,1758455458811,-480.0,0.00020547,2]
[386665967,1758455458820,-480.0,0.00020547,2]
[386665968,1758455458829,-480.0,0.00020547,2]
[386665969,1758455458839,-480.0,0.00020547,2]
[386665970,1758455458848,-480.0,0.00020547,2]
[386665971,1758455458857,-480.0,0.00020547,2]
[386665972,1758455458867,-480.0,0.00020547,2]
[386665973,1758455458877,-480.0,0.00020547,2]
[386665974,1758455458887,-596.43434918,0.00020547,2]
[386665975,1758455458896,-480.0,0.00020547,2]
[386665976,1758455458906,-480.0,0.00020547,2]
[386665977,1758455458915,-725.53,0.00020547,2]
[386665978,1758455458925,-514.23,0.00020547,2]
[386665979,1758455458934,-480.0,0.00020547,2]
[386665980,1758455458944,-316.094432,0.00020547,2]
[386665981,1758455458954,-316.094432,0.00020547,2]
[386665982,1758455458963,-480.0,0.00020547,2]
[386665983,1758455458972,-316.094432,0.00020547,2]
[386665984,1758455458982,-480.0,0.00020547,2]
[386665985,1758455458991,-316.094432,0.00020547,2]
[386665986,1758455459001,-480.0,0.00020547,2]
[386665987,1758455459010,-480.0,0.00020547,2]
[386665988,1758455459019,-480.0,0.00020547,2]
[386665989,1758455459029,-1960.54,0.00020547,2]
[386665990,1758455459038,-480.0,0.00020547,2]
[386665991,1758455459047,-480.0,0.00020547,2]
[386665992,1758455459058,-480.0,0.00020547,2]
[386665993,1758455459067,-1708.3,0.00020547,2]
[386665994,1758455459077,-480.0,0.00020547,2]
[386665995,1758455459086,-488.55127161,0.00020547,2]
[386665996,1758455459096,-793.7,0.00020547,2]
[386665997,1758455459105,-480.0,0.00020547,2]
[386665998,1758455459114,-480.0,0.00020547,2]
[386665999,1758455459124,-480.0,0.00020547,2]
[386666000,1758455459133,-1034.45,0.00020547,2]
[386666001,1758455459143,-480.0,0.00020547,2]
[386666002,1758455459153,-480.0,0.00020547,2]
[386666003,1758455459162,-595.15,0.00020547,2]
[386666004,1758455459172,-480.0,0.00020547,2]
[386666005,1758455459181,-480.0,0.00020547,2]
[386666006,1758455459191,-746.69,0.00020547,2]
[386666007,1758455459200,-480.0,0.00020547,2]
[386666008,1758455459210,-480.0,0.00020547,2]
[386666009,1758455459219,-1331.21,0.00020547,2]
[386666010,1758455459229,-1041.37,0.00020547,2]
[386666011,1758455459238,-480.0,0.00020547,2]
[386666013,1758455459247,-498.23435756,0.00020547,2]
[386666015,1758455459257,-480.0,0.00020547,2]
[386666028,1758455459379,-833.47,0.00020547,2]
[386666030,1758455459393,-480.0,0.00020547,2]
[386666032,1758455459402,-480.0,0.00020547,2]
[386666034,1758455459412,-1633.93,0.00020547,2]
[386666036,1758455459421,-480.0,0.00020547,2]
[386666038,1758455459431,-11074.35,0.00020547,2]
[386666040,1758455459440,-480.0,0.00020547,2]
[386666042,1758455459450,-345.54669654,0.00020547,2]
[386666044,1758455459460,-617.06571031,0.00020547,2]
[386666046,1758455459469,-423.06445261,0.00020547,2]
[386666048,1758455459479,-480.0,0.00020547,2]
[386666050,1758455459488,-480.0,0.00020547,2]
[386666052,1758455459498,-1864.11,0.00020547,2]
[386666054,1758455459508,-493.12,0.00020547,2]
[386666056,1758455459518,-480.0,0.00020547,2]
[386666058,1758455459528,-480.0,0.00020547,2]
[386666060,1758455459537,-500.0,0.00020548,2]
[386666062,1758455459546,-823.43081564,0.00020568,2]
[386666064,1758455459556,-1500.0,0.00020568,2]
[386666066,1758455459566,-1500.0,0.00020568,2]
[386666068,1758455459576,-1500.0,0.00020568,2]
[386666070,1758455459587,-1000.0,0.00020609,2]
[386666072,1758455459596,-1001.06831998,0.00020609,2]
[386666074,1758455459606,-1001.98979774,0.00020609,2]
[386666076,1758455459616,-1000.0,0.00020609,2]
[386666078,1758455459626,-151.0,0.00020611,2]
[386666080,1758455459636,-151.0,0.00020611,2]
[386666082,1758455459646,-265.852557,0.00020611,2]
[386666084,1758455459655,-154.080697,0.00020611,2]
[386666086,1758455459665,-978.0,0.00020684,2]
[386666088,1758455459675,-410.0,0.00020684,2]
[386666090,1758455459685,-416.541,0.00020684,2]
[386666092,1758455459694,-2158.0,0.00020684,2]
[386666094,1758455459703,-634.0,0.00020684,2]
[386666096,1758455459713,-2401.0,0.00020684,2]
[386666098,1758455459723,-250.0,0.00020684,2]
[386666100,1758455459733,-151.0,0.00020684,2]
[386666102,1758455459742,-196.934481,0.00020684,2]
[386666104,1758455459751,-332.447463,0.00020684,2]
[386666106,1758455459761,-332.447463,0.00020684,2]
[386666108,1758455459771,-332.447463,0.00020684,2]
[386666110,1758455459780,-332.44746141,0.00020684,2]
[386666112,1758455459789,-2638.33532961,0.000207,2]
[386666114,1758455459798,-500.0,0.00020707,2]
[386666116,1758455459807,-1400.0,0.00020712,2]
[386666118,1758455459817,-420.0,0.00020776,2]
[386666120,1758455459826,-420.0,0.00020776,2]
[386666122,1758455459835,-420.0,0.00020776,2]
[386666124,1758455459844,-1680.0,0.00020777,2]
[386666126,1758455459854,-503.0271083,0.000208,2]
[386666128,1758455459864,-504.639485,0.000208,2]
[386666130,1758455459874,-151.0,0.000208,2]
[386666132,1758455459883,-151.0,0.000208,2]
[386666134,1758455459893,-151.0,0.000208,2]
[386666135,1758455459903,-1000.0,0.00020816,2]
[386666137,1758455459912,-872.37900284,0.00020816,2]
[386666139,1758455459922,-2000.0,0.00020816,2]
[386666141,1758455459932,-500.0,0.00020816,2]
[386666143,1758455459942,-2000.0,0.00020816,2]
[386666145,1758455459952,-500.0,0.00020821,2]
[386666147,1758455459961,-500.0,0.00020821,2]
[386666149,1758455459971,-500.0,0.00020821,2]
[386666151,1758455459981,-500.0,0.00020821,2]
[386666153,1758455459990,-496.89196208,0.00020821,2]
[386666155,1758455459999,-480.0,0.00020821,2]
[386666157,1758455460009,-480.0,0.00020821,2]
[386666159,1758455460019,-480.0,0.00020821,2]
[386666161,1758455460028,-480.0,0.00020821,2]
[386666163,1758455460039,-480.0,0.00020821,2]
[386666165,1758455460049,-480.0,0.00020821,2]
[386666167,1758455460059,-480.0,0.00020821,2]
[386666169,1758455460071,-480.0,0.00020821,2]
[386666171,1758455460084,-480.0,0.00020821,2]
[386666173,1758455460094,-480.0,0.00020821,2]
[386666175,1758455460104,-480.0,0.00020821,2]
[386666177,1758455460114,-480.0,0.00020821,2]
[386666179,1758455460123,-480.0,0.00020821,2]
[386666181,1758455460133,-480.0,0.00020821,2]
[386666183,1758455460143,-480.0,0.00020821,2]
[386666185,1758455460152,-480.0,0.00020821,2]
[386666187,1758455460162,-480.0,0.00020821,2]
[386666189,1758455460171,-480.0,0.00020821,2]
[386666191,1758455460181,-480.0,0.00020821,2]
[386666193,1758455460191,-480.0,0.00020821,2]
[386666195,1758455460201,-480.0,0.00020821,2]
[386666197,1758455460211,-480.0,0.00020821,2]
[386666199,1758455460220,-480.0,0.00020821,2]
[386666201,1758455460230,-492.57521216,0.00020821,2]
[386666203,1758455460242,-3266.23,0.00020821,2]
[386666204,1758455460252,-480.0,0.00020821,2]
[386666205,1758455460261,-480.0,0.00020821,2]
[386666206,1758455460271,-999.01,0.00020821,2]
[386666207,1758455460280,-480.0,0.00020821,2]
[386666208,1758455460290,-530.73459068,0.00020821,2]
[386666209,1758455460299,-480.0,0.00020821,2]
[386666210,1758455460308,-480.0,0.00020821,2]
[386666211,1758455460318,-480.0,0.00020821,2]
[386666212,1758455460327,-403.80446147,0.00020821,2]
[386666213,1758455460338,-480.0,0.00020821,2]
[386666214,1758455460348,-480.0,0.00020821,2]
[386666215,1758455460358,-539.12,0.00020821,2]
[386666217,1758455460367,-948.56,0.00020821,2]
[386666219,1758455460377,-1038.88,0.00020821,2]
[386666221,1758455460390,-480.0,0.00020821,2]
[386666223,1758455460400,-480.0,0.00020821,2]
[386666225,1758455460410,-622.1,0.00020821,2]
[386666227,1758455460419,-480.0,0.00020821,2]
[386666229,1758455460429,-460.558345,0.00020821,2]
[386666231,1758455460438,-480.0,0.00020821,2]
[386666233,1758455460448,-480.0,0.00020821,2]
[386666235,1758455460458,-480.0,0.00020821,2]
[386666237,1758455460467,-480.0,0.00020821,2]
[386666239,1758455460477,-443.75269614,0.00020821,2]
[386666241,1758455460487,-480.0,0.00020821,2]
[386666243,1758455460497,-480.0,0.00020821,2]
[386666245,1758455460507,-480.0,0.00020821,2]
[386666247,1758455460516,-480.0,0.00020821,2]
[386666249,1758455460525,-480.0,0.00020821,2]
[386666251,1758455460534,-480.0,0.00020821,2]
[386666253,1758455460544,-626.02041284,0.00020821,2]
[386666255,1758455460553,-480.0,0.00020821,2]
[386666257,1758455460562,-480.0,0.00020821,2]
[386666259,1758455460572,-480.0,0.00020821,2]
[386666261,1758455460582,-480.0,0.00020821,2]
[386666263,1758455460591,-725.53,0.00020821,2]
[386666265,1758455460602,-514.23,0.00020821,2]
[386666267,1758455460611,-480.0,0.00020821,2]
[386666269,1758455460621,-480.0,0.00020821,2]
[386666272,1758455460631,-480.0,0.00020821,2]
[386666274,1758455460640,-480.0,0.00020821,2]
[386666276,1758455460650,-480.0,0.00020821,2]
[386666278,1758455460659,-480.0,0.00020821,2]
[386666279,1758455460668,-1960.54,0.00020821,2]
[386666281,1758455460678,-480.0,0.00020821,2]
[386666283,1758455460687,-480.0,0.00020821,2]
[386666285,1758455460697,-480.0,0.00020821,2]
[386666287,1758455460706,-1708.3,0.00020821,2]
[386666289,1758455460716,-480.0,0.00020821,2]
[386666292,1758455460726,-793.7,0.00020821,2]
[386666294,1758455460735,-480.0,0.00020821,2]
[386666296,1758455460745,-480.0,0.00020821,2]
[386666298,1758455460755,-480.0,0.00020821,2]
[386666300,1758455460765,-1034.45,0.00020821,2]
[386666302,1758455460775,-480.0,0.00020821,2]
[386666304,1758455460785,-480.0,0.00020821,2]
[386666306,1758455460794,-595.15,0.00020821,2]
[386666308,1758455460804,-480.0,0.00020821,2]
[386666310,1758455460814,-480.0,0.00020821,2]
[386666312,1758455460823,-746.69,0.00020821,2]
[386666314,1758455460833,-480.0,0.00020821,2]
[386666316,1758455460842,-1331.21,0.00020821,2]
[386666318,1758455460851,-1041.37,0.00020821,2]
[386666320,1758455460860,-480.0,0.00020821,2]
[386666322,1758455460870,-151.88291721,0.00020821,2]
[386666324,1758455460880,-833.47,0.00020821,2]
[386666326,1758455460890,-480.0,0.00020821,2]
[386666328,1758455460900,-480.0,0.00020821,2]
[386666330,1758455460909,-1633.93,0.00020821,2]
[386666332,1758455460919,-480.0,0.00020821,2]
[386666334,1758455460929,-480.0,0.00020821,2]
[386666336,1758455460939,-11074.35,0.00020821,2]
[386666338,1758455460949,-480.0,0.00020821,2]
[386666340,1758455460958,-480.0,0.00020821,2]
[386666342,1758455460969,-1864.11,0.00020821,2]
[386666344,1758455460978,-493.12,0.00020821,2]
[386666346,1758455460988,-480.0,0.00020821,2]
[386666348,1758455460997,-480.0,0.00020821,2]
[386666350,1758455461007,-409.39,0.00020822,2]
[386666352,1758455461017,-339.816991,0.00020822,2]
[386666354,1758455461027,-339.816991,0.00020822,2]
[386666356,1758455461036,-339.816991,0.00020822,2]
[386666358,1758455461047,-339.816991,0.00020822,2]
[386666360,1758455461056,-174.338455,0.00020822,2]
[386666362,1758455461066,-174.338455,0.00020822,2]
[386666364,1758455461075,-174.338455,0.00020822,2]
[386666366,1758455461085,-151.0,0.00020822,2]
[386666368,1758455461094,-174.338464,0.00020822,2]
[386666370,1758455461103,-2027.84755411,0.00020833,2]
[386666372,1758455461112,-1500.0,0.00020868,2]
[386666374,1758455461122,-1257.36639487,0.00020868,2]
[386666376,1758455461131,-500.0,0.00020868,2]
[386666378,1758455461140,-508.0887507,0.00020868,2]
[386666380,1758455461150,-500.0,0.00020868,2]
[386666383,1758455461160,-500.0,0.00020868,2]
[386666384,1758455461170,-500.0,0.00020868,2]
[386666386,1758455461179,-500.0,0.00020868,2]
[386666388,1758455461188,-1680.0,0.00020877,2]
[386666390,1758455461198,-252.41532655,0.000209,2]
[386666392,1758455461208,-3874.5319705,0.000209,2]
[386666394,1758455461218,-2638.33532961,0.000209,2]
[386666397,1758455461231,-151.0,0.000209,2]
[386666399,1758455461241,-186.0,0.00020959,3]
[386666401,1758455461251,-500.0,0.00020968,2]
[386666403,1758455461260,-339.816991,0.00020968,2]
[386666405,1758455461269,-339.816991,0.00020968,2]
[386666407,1758455461279,-339.816991,0.00020968,2]
[386666409,1758455461288,-339.816991,0.00020968,2]
[386666411,1758455461298,-12379.28492967,0.00020972,2]
[386666413,1758455461307,-173.704372,0.00020972,2]
[386666415,1758455461316,-185.001351,0.00020972,2]
[386666417,1758455461325,-151.0,0.00020972,2]
[386666419,1758455461334,-160.0,0.00020979,3]
[386666421,1758455461344,-500.0,0.00020981,2]
[386666423,1758455461353,-360.0,0.00020992,2]
[386666425,1758455461364,-2603.0,0.00021,3]
[386666427,1758455461373,-250.15762685,0.00021,2]
[386666429,1758455461383,-272.83038381,0.00021,2]
[386666431,1758455461391,-27294.76350694,0.00021,3]
[386666433,1758455461402,-204.09519402,0.00021,2]
[386666435,1758455461412,-213.277159,0.00021,2]
[386666437,1758455461422,-316.094432,0.00021,2]
[386666439,1758455461432,-316.094432,0.00021,2]
[386666441,1758455461442,-316.094432,0.00021,2]
[386666443,1758455461453,-316.094426,0.00021,2]
[386666444,1758455461463,-5087.0,0.00021,10]
[386666446,1758455461473,-1000.0,0.00021006,2]
[386666449,1758455461487,-1005.97193109,0.00021006,2]
[386666451,1758455461496,-689.43090805,0.00021006,2]
[386666453,1758455461506,-1000.0,0.00021006,2]
[386666455,1758455461516,-1000.0,0.00021006,2]
[386666457,1758455461525,-500.0,0.00021006,2]
[386666459,1758455461535,-757.58554608,0.00021006,2]
[386666461,1758455461544,-500.0,0.00021006,2]
[386666463,1758455461555,-500.0,0.00021006,2]
[386666465,1758455461564,-490.83033829,0.00021095,2]
[386666467,1758455461573,-480.0,0.00021095,2]
[386666469,1758455461583,-480.0,0.00021095,2]
[386666471,1758455461592,-480.0,0.00021095,2]
[386666473,1758455461601,-480.0,0.00021095,2]
[386666475,1758455461611,-480.0,0.00021095,2]
[386666477,1758455461620,-480.0,0.00021095,2]
[386666479,1758455461629,-480.0,0.00021095,2]
[386666481,1758455461639,-480.0,0.00021095,2]
[386666483,1758455461648,-480.0,0.00021095,2]
[386666485,1758455461657,-496.06124471,0.00021095,2]
[386666487,1758455461667,-480.0,0.00021095,2]
[386666489,1758455461677,-151.0,0.00021095,2]
[386666491,1758455461686,-154.51728,0.00021095,2]
[386666493,1758455461695,-480.0,0.00021095,2]
[386666494,1758455461705,-480.0,0.00021095,2]
[386666497,1758455461715,-312.19664976,0.00021095,2]
[386666499,1758455461725,-565.65795806,0.00021095,2]
[386666511,1758455461734,-480.0,0.00021095,2]
[386666513,1758455461846,-480.0,0.00021095,2]
[386666515,1758455461856,-480.0,0.00021095,2]
[386666517,1758455461865,-480.0,0.00021095,2]
[386666519,1758455461875,-3266.23,0.00021095,2]
[386666521,1758455461884,-480.0,0.00021095,2]
[386666523,1758455461894,-480.0,0.00021095,2]
[386666526,1758455461905,-999.01,0.00021095,2]
[386666528,1758455461915,-500.56870023,0.00021095,2]
[386666530,1758455461924,-480.0,0.00021095,2]
[386666531,1758455461933,-480.0,0.00021095,2]
[386666534,1758455461943,-476.30493954,0.00021095,2]
[386666536,1758455461953,-480.0,0.00021095,2]
[386666538,1758455461962,-539.12,0.00021095,2]
[386666540,1758455461972,-948.56,0.00021095,2]
[386666542,1758455461982,-1038.88,0.00021095,2]
[386666544,1758455461991,-160.269106,0.00021095,2]
[386666546,1758455462001,-492.67807323,0.00021095,2]
[386666547,1758455462011,-151.0,0.00021095,2]
[386666549,1758455462020,-480.0,0.00021095,2]
[386666551,1758455462030,-622.1,0.00021095,2]
[386666553,1758455462040,-151.0,0.00021095,2]
[386666556,1758455462051,-480.0,0.00021095,2]
[386666558,1758455462060,-480.0,0.00021095,2]
[386666560,1758455462070,-480.0,0.00021095,2]
[386666562,1758455462079,-480.0,0.00021095,2]
[386666564,1758455462088,-480.0,0.00021095,2]
[386666566,1758455462098,-480.0,0.00021095,2]
[386666568,1758455462107,-502.89585119,0.00021095,2]
[386666570,1758455462116,-480.0,0.00021095,2]
[386666572,1758455462125,-480.0,0.00021095,2]
[386666574,1758455462135,-480.0,0.00021095,2]
[386666576,1758455462145,-501.39005476,0.00021095,2]
[386666578,1758455462154,-480.0,0.00021095,2]
[386666580,1758455462164,-480.0,0.00021095,2]
[386666582,1758455462173,-480.0,0.00021095,2]
[386666584,1758455462183,-440.52367794,0.00021095,2]
[386666586,1758455462192,-725.53,0.00021095,2]
[386666588,1758455462201,-514.23,0.00021095,2]
[386666590,1758455462212,-515.02431158,0.00021095,2]
[386666592,1758455462222,-480.0,0.00021095,2]
[386666594,1758455462231,-480.0,0.00021095,2]
[386666596,1758455462240,-480.0,0.00021095,2]
[386666598,1758455462250,-392.00834112,0.00021095,2]
[386666600,1758455462259,-252.60071238,0.00021095,2]
[386666601,1758455462268,-1960.54,0.00021095,2]
[386666603,1758455462277,-480.0,0.00021095,2]
[386666605,1758455462287,-480.0,0.00021095,2]
[386666607,1758455462297,-480.0,0.00021095,2]
[386666609,1758455462307,-1708.3,0.00021095,2]
[386666611,1758455462317,-480.0,0.00021095,2]